[Event "22nd Ruzomberok Open 2019"]
[Site "Ruzomberok"]
[Date "2019.07.03"]
[Round "5.9"]
[White "Bombek, Peter"]
[Black "Palider, Pavol"]
[Result "1/2-1/2"]
[ECO "D85"]
[WhiteElo "2159"]
[BlackElo "2026"]
[Annotator "NA"]
[PlyCount "80"]
[EventDate "2019.06.29"]
[EventType "swiss"]
[EventCountry "SVK"]
[SourceTitle "playchess.com"]
[Source "ChessBase"]
[SourceQuality "1"]
[TimeControl "40/5400+30:1800+30"]

1. d4 {[%emt 0:00:00]} Nf6 {[%emt 0:00:00]} 2. c4 {[%emt 0:00:00]} g6 {[%emt 0:00:00]} 3. Nc3 {[%emt 0:00:16]} d5 {[%emt 0:00:15]} 4. cxd5 {[%emt 0:00:33]} Nxd5 {[%emt 0:00:24]} 5. Bd2 {[%emt 0:00:20]} Bg7 {[%emt 0:00:26]} 6. e4 {[%emt 0:00:20]} Nxc3 {[%emt 0:01:15]} 7. Bxc3 {[%emt 0:00:09]} O-O {[%emt 0:00:21]} 8. Bc4 {[%emt 0:01:53]} c5 {[%emt 0:02:32]} 9. d5 {[%emt 0:02:24]} Bxc3+ {[%emt 0:04:24]} 10. bxc3 {[%emt 0:00:11]} Nd7 {[%emt 0:01:50]} 11. Nf3 {[%emt 0:06:04]} Qc7 {[%emt 0:01:45]} 12. O-O {[%emt 0:01:20]} Ne5 {[%emt 0:00:10]} 13. Nxe5 {[%emt 0:01:22]} Qxe5 {[%emt 0:00:08]} 14. Qd3 {[%emt 0:02:23]} Qd6 {[%emt 0:16:32]} 15. f4 {[%emt 0:02:39]} b6 {[%emt 0:03:26]} 16. Rae1 {[%emt 0:04:04]} Qc7 {[%emt 0:04:43]} 17. Re3 {[%emt 0:03:32]} a6 {[%emt 0:01:18]} 18. a4 {[%emt 0:07:49]} Bd7 {[%emt 0:00:50]} 19. f5 {[%emt 0:04:38]} Qe5 {[%emt 0:02:37]} 20. Rg3 {[%emt 0:07:04]} b5 {[%emt 0:05:57]} 21. axb5 {[%emt 0:02:03]} axb5 {[%emt 0:00:08]} 22. Bxb5 {[%emt 0:02:08]} Bxb5 {[%emt 0:00:48]} 23. Qxb5 {[%emt 0:00:08]} Qxe4 {[%emt 0:00:25]} 24. Qxc5 {[%emt 0:02:21]} Rac8 {[%emt 0:01:02]} 25. Qe3 {[%emt 0:03:39]} Qxd5 {[%emt 0:00:57]} 26. Qxe7 {[%emt 0:02:26]} Qc5+ {[%emt 0:00:56]} 27. Qxc5 {[%emt 0:02:49]} Rxc5 {[%emt 0:00:06]} 28. fxg6 {[%emt 0:01:03]} hxg6 {[%emt 0:00:10]} 29. Rgf3 {[%emt 0:03:40]} Kg7 {[%emt 0:02:08]} 30. Rd1 {[%emt 0:02:36]} Rc7 {[%emt 0:00:16]} 31. Rd6 {[%emt 0:04:48]} Ra8 {[%emt 0:03:17]} 32. h4 {[%emt 0:02:47]} Ra3 {[%emt 0:00:37]} 33. Rdf6 {[%emt 0:02:16]} Kg8 {[%emt 0:01:19]} 34. Kh2 {[%emt 0:01:50]} Ra4 {[%emt 0:04:33]} 35. Kh3 {[%emt 0:01:12]} Re4 {[%emt 0:00:46]} 36. g3 {[%emt 0:01:07]} Ra4 {[%emt 0:01:22]} 37. R6f4 {[%emt 0:04:08]} Rxf4 {[%emt 0:03:56]} 38. gxf4 {[%emt 0:00:43]} Kg7 {[%emt 0:00:41]} 39. Rd3 {[%emt 0:02:29]} Kh6 {[%emt 0:02:39]} 40. f5 {[%emt 0:06:40]} gxf5 {[%emt 0:02:51]} 1/2-1/2

[Event "22nd Ruzomberok Open 2019"]
[Site "Ruzomberok"]
[Date "2019.07.03"]
[Round "5.10"]
[White "Zahradnik, Vladimir"]
[Black "Mrvova, Alena"]
[Result "1/2-1/2"]
[ECO "A48"]
[WhiteElo "1862"]
[BlackElo "2153"]
[Annotator "NA"]
[PlyCount "57"]
[EventDate "2019.06.29"]
[EventType "swiss"]
[EventCountry "SVK"]
[SourceTitle "playchess.com"]
[Source "ChessBase"]
[SourceQuality "1"]
[TimeControl "40/5400+30:1800+30"]

1. d4 {[%emt 0:00:00]} Nf6 {[%emt 0:00:00]} 2. Nf3 {[%emt 0:00:00]} g6 {[%emt 0:01:08]} 3. c4 {[%emt 0:00:02]} Bg7 {[%emt 0:00:56]} 4. Nc3 {[%emt 0:00:07]} d5 {[%emt 0:01:00]} 5. cxd5 {[%emt 0:03:48]} Nxd5 {[%emt 0:00:17]} 6. Qa4+ {[%emt 0:04:16]} c6 {[%emt 0:03:49]} 7. e4 {[%emt 0:00:19]} Nb6 {[%emt 0:00:30]} 8. Qd1 {[%emt 0:00:43]} Bg4 {[%emt 0:01:17]} 9. Be3 {[%emt 0:00:14]} O-O {[%emt 0:01:47]} 10. h3 {[%emt 0:01:49]} Bxf3 {[%emt 0:01:43]} 11. gxf3 {[%emt 0:00:07]} N8d7 {[%emt 0:01:30]} 12. f4 {[%emt 0:01:19]} e6 {[%emt 0:01:08]} 13. h4 {[%emt 0:01:20]} h5 {[%emt 0:01:52]} 14. Qd2 {[%emt 0:00:58]} Nf6 {[%emt 0:00:22]} 15. f3 {[%emt 0:02:29]} Qe7 {[%emt 0:01:05]} 16. a3 {[%emt 0:05:49]} Nbd7 {[%emt 0:03:11]} 17. Kf2 {[%emt 0:03:29]} Rfd8 {[%emt 0:02:41]} 18. Bd3 {[%emt 0:00:56]} Ne8 {[%emt 0:02:14]} 19. e5 {[%emt 0:06:29]} Nc7 {[%emt 0:00:24]} 20. Rag1 {[%emt 0:01:06]} c5 {[%emt 0:01:40]} 21. Ne4 {[%emt 0:03:50]} cxd4 {[%emt 0:02:05]} 22. Bxd4 {[%emt 0:00:13]} Ne8 {[%emt 0:00:14]} 23. Qe3 {[%emt 0:02:01]} b6 {[%emt 0:01:48]} 24. Rc1 {[%emt 0:01:30]} Rac8 {[%emt 0:01:32]} 25. Kg3 {[%emt 0:00:16]} Bh6 {[%emt 0:01:56]} 26. Rxc8 {[%emt 0:05:08]} Rxc8 {[%emt 0:00:41]} 27. Rc1 {[%emt 0:00:21]} Rxc1 {[%emt 0:01:57]} 28. Qxc1 {[%emt 0:00:06]} Nf8 {[%emt 0:00:47]} 29. Qc3 {[%emt 0:01:59]} 1/2-1/2

[Event "22nd Ruzomberok Open 2019"]
[Site "Ruzomberok"]
[Date "2019.07.03"]
[Round "5.12"]
[White "Orvisky, Vladimir"]
[Black "Kukan, Michal"]
[Result "0-1"]
[ECO "A18"]
[WhiteElo "1719"]
[BlackElo "1698"]
[Annotator "NA"]
[PlyCount "88"]
[EventDate "2019.06.29"]
[EventType "swiss"]
[EventCountry "SVK"]
[SourceTitle "playchess.com"]
[Source "ChessBase"]
[SourceQuality "1"]
[TimeControl "40/5400+30:1800+30"]

1. c4 {[%emt 0:00:00]} e6 {[%emt 0:00:00]} 2. Nc3 {[%emt 0:00:00]} Nf6 {[%emt 0:00:51]} 3. e4 {[%emt 0:00:00]} d5 {[%emt 0:02:05]} 4. e5 {[%emt 0:01:02]} Nfd7 {[%emt 0:04:54]} 5. d4 {[%emt 0:01:06]} dxc4 {[%emt 0:02:50]} 6. Bxc4 {[%emt 0:07:01]} Nb6 {[%emt 0:02:21]} 7. Be2 {[%emt 0:14:06]} Bd7 {[%emt 0:05:01]} 8. Nf3 {[%emt 0:00:45]} h6 9. O-O {[%emt 0:02:06]} Be7 {[%emt 0:05:30]} 10. Be3 {[%emt 0:01:16]} Bc6 {[%emt 0:05:32]} 11. a4 {[%emt 0:02:36]} Nd5 {[%emt 0:04:15]} 12. Bd2 {[%emt 0:01:42]} a6 {[%emt 0:08:22]} 13. Rc1 {[%emt 0:07:43]} Nd7 {[%emt 0:02:35]} 14. a5 {[%emt 0:04:03]} Nb4 {[%emt 0:02:18]} 15. Na4 {[%emt 0:02:34]} Be4 {[%emt 0:03:13]} 16. Qb3 {[%emt 0:09:59]} Nd5 {[%emt 0:06:11]} 17. Rfe1 {[%emt 0:00:01]} O-O {[%emt 0:01:14]} 18. Qxb7 {[%emt 0:07:44]} Nc3 {[%emt 0:15:23]} 19. Qb3 {[%emt 0:00:04]} Nxe2+ {[%emt 0:00:40]} 20. Rxe2 {[%emt 0:14:42]} Bd5 {[%emt 0:00:00]} 21. Qc3 {[%emt 0:00:01]} c6 {[%emt 0:01:32]} 22. Qd3 {[%emt 0:05:22]} Rb8 {[%emt 0:01:10]} 23. Qxa6 {[%emt 0:05:50]} Bb4 {[%emt 0:06:17]} 24. Nc3 {[%emt 0:00:13]} Bxf3 {[%emt 0:02:26]} 25. gxf3 {[%emt 0:01:36]} Bxa5 {[%emt 0:01:05]} 26. Ne4 {[%emt 0:00:13]} Bxd2 {[%emt 0:03:45]} 27. Rxd2 {[%emt 0:00:59]} Rb6 {[%emt 0:01:38]} 28. Qa4 {[%emt 0:00:54]} f5 {[%emt 0:01:15]} 29. exf6 {[%emt 0:04:09]} Nxf6 30. Nc5 {[%emt 0:01:28]} Qd5 {[%emt 0:01:40]} 31. Qc4 {[%emt 0:00:44]} Qg5+ {[%emt 0:00:59]} 32. Kf1 {[%emt 0:00:45]} Qxd2 {[%emt 0:01:05]} 33. Rc2 Qd1+ 34. Kg2 {[%emt 0:02:50]} Nd5 {[%emt 0:03:26]} 35. Nxe6 {[%emt 0:00:01]} Qxf3+ {[%emt 0:00:59]} 36. Kg1 {[%emt 0:00:11]} Qg4+ {[%emt 0:00:45]} 37. Kh1 {[%emt 0:00:14]} Qxe6 38. Re2 {[%emt 0:00:16]} Qh3 {[%emt 0:02:32]} 39. Kg1 {[%emt 0:00:24]} Rf6 {[%emt 0:01:03]} 40. Re3 {[%emt 0:00:22]} Rg6+ {[%emt 0:00:44]} 41. Rg3 {[%emt 0:33:07]} Rxg3+ {[%emt 0:30:25]} 42. hxg3 {[%emt 0:00:06]} Rxb2 {[%emt 0:00:46]} 43. Qd3 {[%emt 0:00:35]} Nc3 {[%emt 0:01:34]} 44. Qc4+ Kh8 {[%emt 0:00:41]} 0-1

[Event "22nd Ruzomberok Open 2019"]
[Site "Ruzomberok"]
[Date "2019.07.03"]
[Round "5.14"]
[White "Stanko, Ivan"]
[Black "Baleja, Marian"]
[Result "1/2-1/2"]
[ECO "B22"]
[WhiteElo "1859"]
[BlackElo "1951"]
[Annotator "NA"]
[PlyCount "45"]
[EventDate "2019.06.29"]
[EventType "swiss"]
[EventCountry "SVK"]
[SourceTitle "playchess.com"]
[Source "ChessBase"]
[SourceQuality "1"]
[TimeControl "40/5400+30:1800+30"]

1. e4 {[%emt 0:00:00]} c5 {[%emt 0:00:00]} 2. c3 {[%emt 0:00:11]} g6 {[%emt 0:00:31]} 3. Nf3 {[%emt 0:00:45]} Bg7 {[%emt 0:00:07]} 4. d4 {[%emt 0:00:45]} cxd4 {[%emt 0:00:06]} 5. cxd4 {[%emt 0:00:06]} d5 {[%emt 0:00:35]} 6. e5 {[%emt 0:01:19]} Nh6 {[%emt 0:01:42]} 7. Bb5+ {[%emt 0:02:42]} Bd7 {[%emt 0:00:19]} 8. Qb3 {[%emt 0:03:51]} a6 {[%emt 0:03:27]} 9. Bd3 {[%emt 0:01:54]} Bc6 {[%emt 0:04:31]} 10. Nc3 {[%emt 0:01:36]} O-O {[%emt 0:03:18]} 11. O-O {[%emt 0:00:43]} e6 {[%emt 0:03:01]} 12. Bg5 {[%emt 0:03:46]} Qa5 {[%emt 0:05:30]} 13. Rac1 {[%emt 0:03:22]} Nd7 {[%emt 0:01:26]} 14. Qd1 {[%emt 0:04:41]} Kh8 {[%emt 0:01:39]} 15. Qd2 {[%emt 0:01:26]} Ng8 {[%emt 0:00:51]} 16. h4 {[%emt 0:09:07]} f6 {[%emt 0:13:52]} 17. exf6 {[%emt 0:07:59]} Ndxf6 {[%emt 0:00:58]} 18. Qe2 {[%emt 0:05:17]} Rae8 {[%emt 0:02:50]} 19. Ne5 {[%emt 0:01:34]} Ne7 {[%emt 0:00:17]} 20. Qd2 {[%emt 0:09:14]} Qb6 {[%emt 0:02:55]} 21. Bb1 {[%emt 0:03:10]} Nf5 {[%emt 0:11:50]} 22. Bxf5 {[%emt 0:06:45]} exf5 {[%emt 0:01:23]} 23. Bh6 {[%emt 0:02:36]} 1/2-1/2

[Event "22nd Ruzomberok Open 2019"]
[Site "Ruzomberok"]
[Date "2019.07.03"]
[Round "5.15"]
[White "Taragel, Marian"]
[Black "Janik, Miroslav"]
[Result "0-1"]
[ECO "C02"]
[WhiteElo "1636"]
[BlackElo "1889"]
[Annotator "NA"]
[PlyCount "66"]
[EventDate "2019.06.29"]
[EventType "swiss"]
[EventCountry "SVK"]
[SourceTitle "playchess.com"]
[Source "ChessBase"]
[SourceQuality "1"]
[TimeControl "40/5400+30:1800+30"]

1. e4 {[%emt 0:00:00]} e6 {[%emt 0:00:00]} 2. d4 {[%emt 0:00:26]} d5 {[%emt 0:00:00]} 3. e5 {[%emt 0:00:57]} c5 {[%emt 0:00:25]} 4. c3 {[%emt 0:01:32]} Nc6 {[%emt 0:00:27]} 5. Nf3 {[%emt 0:02:01]} Qb6 {[%emt 0:01:18]} 6. a3 {[%emt 0:02:06]} cxd4 {[%emt 0:04:00]} 7. cxd4 {[%emt 0:01:50]} Bd7 {[%emt 0:10:55]} 8. Nc3 {[%emt 0:03:05]} a5 {[%emt 0:07:12]} 9. Na4 {[%emt 0:03:10]} Qd8 {[%emt 0:05:43]} 10. b3 {[%emt 0:02:32]} f6 {[%emt 0:05:56]} 11. exf6 {[%emt 0:07:07]} Nxf6 {[%emt 0:00:26]} 12. Bf4 {[%emt 0:01:58]} Ne4 {[%emt 0:06:14]} 13. Qc1 {[%emt 0:17:56]} Rc8 {[%emt 0:03:57]} 14. Qe3 {[%emt 0:04:21]} Bxa3 {[%emt 0:12:21]} 15. Rxa3 {[%emt 0:07:08]} Nb4 {[%emt 0:00:16]} 16. Bd3 {[%emt 0:09:59]} Rc1+ {[%emt 0:01:19]} 17. Qxc1 {[%emt 0:02:25]} Nxd3+ {[%emt 0:00:15]} 18. Ke2 {[%emt 0:00:42]} Nxc1+ {[%emt 0:00:29]} 19. Rxc1 {[%emt 0:00:12]} Qe7 {[%emt 0:02:25]} 20. Ra2 {[%emt 0:01:41]} Bb5+ {[%emt 0:00:32]} 21. Ke3 {[%emt 0:01:26]} O-O {[%emt 0:03:19]} 22. Rc7 {[%emt 0:04:41]} Qb4 {[%emt 0:01:30]} 23. Rb2 {[%emt 0:01:12]} Bxa4 {[%emt 0:01:18]} 24. Be5 {[%emt 0:01:52]} Nf6 {[%emt 0:00:19]} 25. h3 {[%emt 0:04:18]} Bc6 {[%emt 0:02:07]} 26. Ng5 {[%emt 0:01:00]} Qc3+ {[%emt 0:01:06]} 27. Kf4 {[%emt 0:00:42]} Qxb2 {[%emt 0:00:14]} 28. Nxe6 {[%emt 0:03:39]} Qxf2+ {[%emt 0:01:30]} 29. Kg5 {[%emt 0:00:17]} Ne4+ {[%emt 0:02:42]} 30. Kh5 {[%emt 0:03:31]} Qf5+ {[%emt 0:00:31]} 31. Kh4 {[%emt 0:00:27]} g5+ {[%emt 0:01:11]} 32. Kh5 {[%emt 0:00:31]} Be8+ {[%emt 0:00:10]} 33. Kh6 {[%emt 0:00:46]} Qg6# 0-1

[Event "22nd Ruzomberok Open 2019"]
[Site "Ruzomberok"]
[Date "2019.07.03"]
[Round "5.16"]
[White "Balogh, Peter"]
[Black "Kapicakova, Lucia"]
[Result "1/2-1/2"]
[ECO "B10"]
[WhiteElo "2037"]
[BlackElo "1776"]
[Annotator "NA"]
[PlyCount "51"]
[EventDate "2019.06.29"]
[EventType "swiss"]
[EventCountry "SVK"]
[SourceTitle "playchess.com"]
[Source "ChessBase"]
[SourceQuality "1"]
[TimeControl "40/5400+30:1800+30"]

1. e4 {[%emt 0:00:02]} c6 {[%emt 0:00:00]} 2. Nf3 {[%emt 0:00:15]} d5 {[%emt 0:00:00]} 3. exd5 {[%emt 0:00:04]} cxd5 {[%emt 0:00:00]} 4. Ne5 {[%emt 0:00:04]} Nc6 {[%emt 0:04:08]} 5. d4 {[%emt 0:03:06]} Nxe5 {[%emt 0:04:22]} 6. dxe5 {[%emt 0:00:04]} e6 {[%emt 0:02:27]} 7. Bd3 {[%emt 0:00:42]} g6 {[%emt 0:06:00]} 8. Qe2 {[%emt 0:01:20]} Bg7 {[%emt 0:01:52]} 9. Nc3 {[%emt 0:00:19]} a6 {[%emt 0:02:07]} 10. h4 {[%emt 0:00:59]} h5 {[%emt 0:06:07]} 11. Bf4 {[%emt 0:01:59]} Ne7 {[%emt 0:05:48]} 12. O-O-O {[%emt 0:01:32]} b5 {[%emt 0:03:52]} 13. g4 {[%emt 0:02:55]} Nc6 {[%emt 0:04:22]} 14. Rdg1 {[%emt 0:03:10]} Bh6 {[%emt 0:12:48]} 15. Bxh6 {[%emt 0:00:21]} Rxh6 {[%emt 0:00:10]} 16. gxh5 {[%emt 0:00:28]} Rxh5 {[%emt 0:00:47]} 17. Rxg6 {[%emt 0:01:20]} Rxh4 {[%emt 0:11:44]} 18. Rg8+ {[%emt 0:05:40]} Ke7 {[%emt 0:00:53]} 19. Rhg1 {[%emt 0:01:24]} Qc7 {[%emt 0:02:13]} 20. Re1 {[%emt 0:11:52]} Bb7 {[%emt 0:06:11]} 21. Rxa8 {[%emt 0:01:20]} Bxa8 {[%emt 0:00:11]} 22. Qe3 {[%emt 0:00:30]} Rh8 {[%emt 0:05:25]} 23. Qf4 {[%emt 0:01:17]} Rh5 {[%emt 0:05:33]} 24. Qf6+ {[%emt 0:00:22]} Kf8 {[%emt 0:01:31]} 25. f4 {[%emt 0:04:57]} Qe7 {[%emt 0:02:39]} 26. Qxe7+ {[%emt 0:00:30]} 1/2-1/2

[Event "22nd Ruzomberok Open 2019"]
[Site "Ruzomberok"]
[Date "2019.07.03"]
[Round "5.17"]
[White "Zentko, Ladislav"]
[Black "Bemak, Mikhail"]
[Result "0-1"]
[ECO "A34"]
[WhiteElo "1732"]
[BlackElo "2102"]
[Annotator "NA"]
[PlyCount "78"]
[EventDate "2019.06.29"]
[EventType "swiss"]
[EventCountry "SVK"]
[SourceTitle "playchess.com"]
[Source "ChessBase"]
[SourceQuality "1"]
[TimeControl "40/5400+30:1800+30"]

1. Nf3 {[%emt 0:00:00]} c5 {[%emt 0:01:24]} 2. c4 {[%emt 0:00:00]} Nf6 {[%emt 0:00:19]} 3. Nc3 {[%emt 0:00:03]} d5 {[%emt 0:00:10]} 4. cxd5 {[%emt 0:01:05]} Nxd5 {[%emt 0:00:05]} 5. d3 {[%emt 0:02:09]} Nc6 {[%emt 0:00:59]} 6. g3 {[%emt 0:00:24]} e5 {[%emt 0:05:04]} 7. Bg2 {[%emt 0:00:49]} Nc7 {[%emt 0:01:04]} 8. O-O {[%emt 0:00:44]} Be7 {[%emt 0:00:06]} 9. Be3 {[%emt 0:09:17]} O-O {[%emt 0:02:26]} 10. Rc1 {[%emt 0:06:32]} Qd7 {[%emt 0:06:26]} 11. Na4 {[%emt 0:05:51]} b6 {[%emt 0:01:36]} 12. b4 {[%emt 0:05:37]} e4 {[%emt 0:06:36]} 13. dxe4 {[%emt 0:02:41]} Qxd1 {[%emt 0:02:26]} 14. Rfxd1 {[%emt 0:00:13]} Nxb4 {[%emt 0:00:12]} 15. a3 {[%emt 0:03:10]} Nc6 {[%emt 0:01:39]} 16. Nxc5 {[%emt 0:04:40]} bxc5 {[%emt 0:01:47]} 17. Bxc5 {[%emt 0:00:09]} Ne6 {[%emt 0:00:40]} 18. Bxe7 {[%emt 0:04:45]} Nxe7 {[%emt 0:00:36]} 19. Ne5 {[%emt 0:03:36]} Rd8 {[%emt 0:12:00]} 20. Rxd8+ {[%emt 0:03:36]} Nxd8 {[%emt 0:00:25]} 21. Rc7 {[%emt 0:00:18]} Kf8 {[%emt 0:01:20]} 22. Nd7+ {[%emt 0:00:57]} Bxd7 {[%emt 0:01:18]} 23. Rxd7 {[%emt 0:00:02]} Ndc6 {[%emt 0:03:59]} 24. f4 {[%emt 0:00:31]} Ke8 {[%emt 0:02:05]} 25. Rd6 {[%emt 0:01:22]} Rb8 {[%emt 0:05:20]} 26. e5 {[%emt 0:01:40]} Rb6 {[%emt 0:03:14]} 27. e6 {[%emt 0:06:53]} fxe6 {[%emt 0:10:13]} 28. Rxe6 {[%emt 0:00:02]} Kd7 {[%emt 0:00:21]} 29. Bh3 {[%emt 0:04:14]} Kc7 {[%emt 0:01:22]} 30. f5 {[%emt 0:01:09]} Rb3 {[%emt 0:02:31]} 31. f6 {[%emt 0:01:00]} gxf6 {[%emt 0:00:05]} 32. Rxf6 {[%emt 0:00:01]} Rxa3 {[%emt 0:04:53]} 33. Rf7 {[%emt 0:01:24]} h5 {[%emt 0:00:52]} 34. Bg2 {[%emt 0:00:27]} Re3 {[%emt 0:03:29]} 35. Bf3 {[%emt 0:04:50]} Re5 {[%emt 0:00:49]} 36. Rh7 {[%emt 0:00:33]} a5 {[%emt 0:03:11]} 37. Bxh5 {[%emt 0:00:41]} a4 {[%emt 0:00:57]} 38. Bg4 {[%emt 0:04:36]} a3 {[%emt 0:00:59]} 39. Rf7 {[%emt 0:01:27]} Rf5 {[%emt 0:05:22]} 0-1

[Event "22nd Ruzomberok Open 2019"]
[Site "Ruzomberok"]
[Date "2019.07.03"]
[Round "5.18"]
[White "Korenova, Simona"]
[Black "Hrnciar, Roman"]
[Result "0-1"]
[ECO "A81"]
[WhiteElo "1764"]
[BlackElo "2096"]
[Annotator "NA"]
[PlyCount "94"]
[EventDate "2019.06.29"]
[EventType "swiss"]
[EventCountry "SVK"]
[SourceTitle "playchess.com"]
[Source "ChessBase"]
[SourceQuality "1"]
[TimeControl "40/5400+30:1800+30"]

1. d4 {[%emt 0:00:00]} f5 {[%emt 0:00:00]} 2. g3 {[%emt 0:00:05]} e6 {[%emt 0:00:00]} 3. Bg2 {[%emt 0:00:08]} Nf6 {[%emt 0:00:00]} 4. Nf3 {[%emt 0:00:20]} Be7 {[%emt 0:00:05]} 5. O-O {[%emt 0:00:30]} O-O {[%emt 0:00:07]} 6. c4 {[%emt 0:00:49]} c6 {[%emt 0:02:05]} 7. Nc3 {[%emt 0:00:51]} d5 {[%emt 0:00:32]} 8. b3 {[%emt 0:01:46]} Ne4 {[%emt 0:00:38]} 9. Bb2 {[%emt 0:01:00]} Nd7 {[%emt 0:00:25]} 10. Rc1 {[%emt 0:04:03]} Bd6 {[%emt 0:03:06]} 11. e3 {[%emt 0:02:05]} b6 {[%emt 0:02:08]} 12. Ne2 {[%emt 0:04:39]} Bb7 {[%emt 0:03:42]} 13. Ne5 {[%emt 0:03:39]} Nxe5 {[%emt 0:04:02]} 14. dxe5 {[%emt 0:00:10]} Be7 {[%emt 0:00:10]} 15. f3 {[%emt 0:06:53]} Ng5 {[%emt 0:00:54]} 16. Nf4 {[%emt 0:02:52]} Bc5 {[%emt 0:03:11]} 17. Bd4 {[%emt 0:03:35]} Qe7 {[%emt 0:02:44]} 18. Qc2 {[%emt 0:05:21]} Rfe8 {[%emt 0:03:30]} 19. Qf2 {[%emt 0:07:21]} Ba3 {[%emt 0:05:18]} 20. Rc2 {[%emt 0:04:48]} dxc4 {[%emt 0:02:35]} 21. bxc4 {[%emt 0:01:08]} c5 {[%emt 0:00:25]} 22. Ba1 {[%emt 0:03:09]} Rad8 {[%emt 0:00:25]} 23. h4 {[%emt 0:02:29]} Nf7 {[%emt 0:00:55]} 24. Bh3 {[%emt 0:02:33]} Nh6 {[%emt 0:06:26]} 25. Nh5 {[%emt 0:08:03]} Rd7 {[%emt 0:08:08]} 26. g4 {[%emt 0:10:34]} fxg4 {[%emt 0:01:51]} 27. fxg4 {[%emt 0:00:31]} Be4 {[%emt 0:00:23]} 28. Rd2 {[%emt 0:03:01]} Rxd2 {[%emt 0:04:22]} 29. Qxd2 {[%emt 0:00:05]} Qxh4 {[%emt 0:03:35]} 30. Qd7 {[%emt 0:01:02]} Qe7 {[%emt 0:00:26]} 31. Rd1 {[%emt 0:01:47]} Nf7 {[%emt 0:06:38]} 32. Bg2 {[%emt 0:04:22]} Bxg2 {[%emt 0:07:24]} 33. Kxg2 {[%emt 0:00:06]} Kf8 {[%emt 0:00:24]} 34. Qd3 {[%emt 0:02:37]} Qg5 {[%emt 0:04:09]} 35. Qe2 {[%emt 0:06:04]} Rd8 {[%emt 0:06:37]} 36. Rf1 {[%emt 0:01:16]} Kg8 {[%emt 0:02:15]} 37. Nf4 {[%emt 0:01:09]} Qe7 {[%emt 0:01:56]} 38. Qc2 {[%emt 0:03:20]} Qb7+ {[%emt 0:01:33]} 39. Kg3 {[%emt 0:00:27]} Ng5 {[%emt 0:00:42]} 40. Qa4 {[%emt 0:03:14]} Bb4 {[%emt 0:04:30]} 41. Bb2 {[%emt 0:03:49]} Qe4 {[%emt 0:09:32]} 42. Qb3 {[%emt 0:07:55]} Be1+ {[%emt 0:04:57]} 43. Rxe1 {[%emt 0:06:26]} Qf3+ {[%emt 0:00:13]} 44. Kh4 {[%emt 0:00:13]} Qf2+ {[%emt 0:00:24]} 45. Kxg5 {[%emt 0:00:15]} h6+ {[%emt 0:00:11]} 46. Kg6 {[%emt 0:04:20]} Qh4 {[%emt 0:00:36]} 47. Nxe6 {[%emt 0:00:47]} Qxg4+ {[%emt 0:00:11]} 0-1

[Event "22nd Ruzomberok Open 2019"]
[Site "Ruzomberok"]
[Date "2019.07.03"]
[Round "5.19"]
[White "Bakalar, Jan"]
[Black "Mc Aleenan, Charles"]
[Result "1/2-1/2"]
[ECO "A01"]
[WhiteElo "1969"]
[BlackElo "1746"]
[Annotator "NA"]
[PlyCount "59"]
[EventDate "2019.06.29"]
[EventType "swiss"]
[EventCountry "SVK"]
[SourceTitle "playchess.com"]
[Source "ChessBase"]
[SourceQuality "1"]
[TimeControl "40/5400+30:1800+30"]

1. b3 {[%emt 0:00:00]} d5 {[%emt 0:00:28]} 2. Bb2 {[%emt 0:00:00]} Nf6 {[%emt 0:00:34]} 3. f4 {[%emt 0:01:47]} g6 {[%emt 0:02:50]} 4. Nf3 {[%emt 0:00:49]} Bg7 {[%emt 0:00:14]} 5. g3 {[%emt 0:04:30]} O-O {[%emt 0:03:21]} 6. Bg2 {[%emt 0:03:09]} c5 {[%emt 0:03:08]} 7. O-O {[%emt 0:02:44]} Nc6 {[%emt 0:00:36]} 8. e3 {[%emt 0:03:36]} b6 {[%emt 0:05:02]} 9. Re1 {[%emt 0:02:41]} Bb7 {[%emt 0:05:39]} 10. d3 {[%emt 0:02:59]} Qc7 {[%emt 0:07:19]} 11. Nbd2 {[%emt 0:01:38]} Rad8 {[%emt 0:07:02]} 12. a3 {[%emt 0:04:43]} Qc8 {[%emt 0:06:15]} 13. h3 {[%emt 0:04:50]} Qa8 {[%emt 0:04:27]} 14. Qe2 {[%emt 0:02:22]} Rfe8 {[%emt 0:04:39]} 15. g4 {[%emt 0:04:53]} Ba6 {[%emt 0:07:56]} 16. c4 {[%emt 0:02:35]} Bb7 {[%emt 0:02:20]} 17. e4 {[%emt 0:08:23]} dxe4 {[%emt 0:02:21]} 18. dxe4 {[%emt 0:00:16]} Nd4 {[%emt 0:02:50]} 19. Nxd4 {[%emt 0:02:23]} cxd4 {[%emt 0:00:13]} 20. e5 {[%emt 0:02:07]} d3 {[%emt 0:01:35]} 21. Qf2 {[%emt 0:06:04]} Nd7 {[%emt 0:02:55]} 22. b4 {[%emt 0:03:05]} Nb8 {[%emt 0:03:54]} 23. g5 {[%emt 0:03:41]} Na6 {[%emt 0:02:04]} 24. Rad1 {[%emt 0:08:55]} Nc7 {[%emt 0:02:28]} 25. Bxb7 {[%emt 0:01:17]} Qxb7 {[%emt 0:00:07]} 26. Ne4 {[%emt 0:07:05]} Qc8 {[%emt 0:03:46]} 27. Kh2 {[%emt 0:00:50]} Qf5 {[%emt 0:00:46]} 28. Ng3 {[%emt 0:02:24]} Qe6 {[%emt 0:02:02]} 29. Re4 {[%emt 0:00:19]} Qc6 {[%emt 0:01:25]} 30. Qe3 {[%emt 0:02:17]} 1/2-1/2